[Event "58th Akiba Rubinstein C 2022"]
[Site "Polanica-Zdroj"]
[Date "2022.08.17"]
[Round "5.12"]
[White "Uscinski, Marek"]
[Black "Gromada, Andrzej"]
[Result "1/2-1/2"]
[ECO "C01"]
[WhiteElo "1824"]
[BlackElo "1680"]
[Annotator "NA RC"]
[PlyCount "42"]
[EventDate "2022.08.13"]
[EventCountry "POL"]
[SourceTitle "playchess.com"]
[Source "ChessBase"]
[SourceQuality "1"]
[TimeControl "40/5400+30:1800+30"]

1. d4 {[%emt 0:00:03]} e6 {[%emt 0:00:14]} 2. e4 {[%emt 0:00:26]} d5 {[%emt 0:00:07]} 3. exd5 {[%emt 0:00:08]} exd5 {[%emt 0:00:03]} 4. Bd3 {[%emt 0:00:09]} c5 {[%emt 0:00:24]} 5. dxc5 {[%emt 0:00:55]} Bxc5 {[%emt 0:00:04]} 6. Nf3 {[%emt 0:00:14]} Nc6 {[%emt 0:01:41]} 7. O-O {[%emt 0:01:46]} Nge7 {[%emt 0:02:59]} 8. c3 {[%emt 0:01:14]} Bg4 {[%emt 0:03:31]} 9. Bf4 {[%emt 0:01:37]} d4 {[%emt 0:05:01]} 10. Be2 {[%emt 0:11:15]} dxc3 {[%emt 0:02:03]} 11. Nxc3 {[%emt 0:00:17]} O-O {[%emt 0:02:38]} 12. a3 {[%emt 0:05:06]} a6 {[%emt 0:02:00]} 13. Rc1 {[%emt 0:11:08]} Ba7 {[%emt 0:05:18]} 14. h3 {[%emt 0:10:20]} Bf5 {[%emt 0:03:34]} 15. Qxd8 {[%emt 0:01:24]} Raxd8 {[%emt 0:00:17]} 16. Rfd1 {[%emt 0:00:17]} h6 {[%emt 0:00:38]} 17. Kf1 {[%emt 0:08:37]} Be6 {[%emt 0:00:26]} 18. Bd6 {[%emt 0:07:43]} Rfe8 {[%emt 0:01:31]} 19. Bxe7 Nxe7 {[%emt 0:00:29]} 20. Rxd8 {[%emt 0:01:18]} Rxd8 {[%emt 0:00:03]} 21. Rd1 {[%emt 0:02:41]} Rxd1+ {[%emt 0:01:09]} 1/2-1/2

[Event "58th Akiba Rubinstein C 2022"]
[Site "Polanica-Zdroj"]
[Date "2022.08.17"]
[Round "5.13"]
[White "Litwin, Tomasz"]
[Black "Poniewierski, Piotr"]
[Result "0-1"]
[ECO "A00"]
[WhiteElo "1580"]
[BlackElo "1747"]
[Annotator "NA RC"]
[PlyCount "118"]
[EventDate "2022.08.13"]
[EventCountry "POL"]
[SourceTitle "playchess.com"]
[Source "ChessBase"]
[SourceQuality "1"]
[TimeControl "40/5400+30:1800+30"]

1. b4 {[%emt 0:00:04]} d5 {[%emt 0:00:18]} 2. Bb2 {[%emt 0:00:01]} Nf6 {[%emt 0:00:20]} 3. e3 {[%emt 0:00:03]} Bf5 {[%emt 0:01:16]} 4. c4 {[%emt 0:00:27]} c6 5. a4 {[%emt 0:03:16]} dxc4 {[%emt 0:04:29]} 6. Bxc4 {[%emt 0:00:06]} e6 {[%emt 0:00:11]} 7. b5 {[%emt 0:02:11]} Be7 {[%emt 0:07:28]} 8. Nf3 {[%emt 0:00:57]} O-O {[%emt 0:00:46]} 9. O-O {[%emt 0:02:28]} cxb5 {[%emt 0:06:28]} 10. axb5 {[%emt 0:00:36]} Bd3 {[%emt 0:04:28]} 11. Bxd3 {[%emt 0:00:28]} Qxd3 {[%emt 0:00:10]} 12. Nc3 {[%emt 0:08:58]} Nbd7 {[%emt 0:03:05]} 13. Qb1 {[%emt 0:11:25]} Qxb1 {[%emt 0:03:59]} 14. Rfxb1 {[%emt 0:00:43]} Rfc8 {[%emt 0:05:57]} 15. Ra2 a5 {[%emt 0:05:23]} 16. Ba3 {[%emt 0:18:10]} Kf8 {[%emt 0:08:48]} 17. Kf1 {[%emt 0:01:10]} Nb6 {[%emt 0:02:51]} 18. Bxe7+ {[%emt 0:02:38]} Kxe7 {[%emt 0:00:08]} 19. Rba1 {[%emt 0:00:12]} Nc4 20. Na4 {[%emt 0:02:56]} Rd8 {[%emt 0:07:15]} 21. Ke2 {[%emt 0:00:28]} Nd5 {[%emt 0:02:25]} 22. Nd4 {[%emt 0:03:37]} Nb4 {[%emt 0:02:07]} 23. Nc5 {[%emt 0:10:59]} Nxa2 {[%emt 0:03:21]} 24. Rxa2 {[%emt 0:00:01]} Nd6 {[%emt 0:02:50]} 25. f4 {[%emt 0:02:52]} Rdc8 {[%emt 0:07:10]} 26. Na4 {[%emt 0:01:13]} Rc1 {[%emt 0:01:46]} 27. Nb6 {[%emt 0:01:14]} Ra7 {[%emt 0:00:25]} 28. e4 {[%emt 0:01:46]} Nc8 {[%emt 0:06:10]} 29. Na4 {[%emt 0:01:50]} f6 {[%emt 0:01:04]} 30. e5 {[%emt 0:00:35]} fxe5 {[%emt 0:00:28]} 31. fxe5 {[%emt 0:00:01]} Ra8 {[%emt 0:02:40]} 32. Ra3 {[%emt 0:01:21]} Na7 {[%emt 0:01:31]} 33. Nb6 {[%emt 0:01:01]} Rd8 {[%emt 0:00:50]} 34. Rxa5 {[%emt 0:02:05]} Nc8 {[%emt 0:03:52]} 35. Nxc8+ {[%emt 0:05:23]} Rcxc8 {[%emt 0:00:12]} 36. Ke3 {[%emt 0:00:20]} Ra8 {[%emt 0:00:18]} 37. Rxa8 {[%emt 0:00:57]} Rxa8 {[%emt 0:00:07]} 38. Kd3 {[%emt 0:00:06]} Rc8 {[%emt 0:01:01]} 39. Ke3 {[%emt 0:02:35]} Kd7 {[%emt 0:00:28]} 40. Ke4 {[%emt 0:00:00]} Rf8 {[%emt 0:00:00]} 41. Nf3 {[%emt 0:01:19]} h6 {[%emt 0:02:54]} 42. g3 {[%emt 0:01:51]} Ra8 {[%emt 0:00:50]} 43. Nd4 {[%emt 0:00:24]} Ra1 {[%emt 0:00:28]} 44. Nf3 {[%emt 0:00:22]} Ra4+ {[%emt 0:01:20]} 45. Nd4 {[%emt 0:00:03]} Ra1 {[%emt 0:00:32]} 46. Nf3 {[%emt 0:00:08]} g5 {[%emt 0:02:32]} 47. g4 {[%emt 0:02:49]} Rb1 {[%emt 0:03:42]} 48. Nd4 {[%emt 0:00:03]} Rh1 {[%emt 0:00:51]} 49. Nf3 {[%emt 0:00:03]} Rf1 {[%emt 0:00:31]} 50. Ke3 {[%emt 0:00:54]} Rb1 {[%emt 0:01:22]} 51. Nd4 {[%emt 0:00:02]} Ra1 {[%emt 0:00:31]} 52. Nf3 {[%emt 0:01:21]} Ra8 {[%emt 0:00:25]} 53. Nd4 {[%emt 0:01:59]} Rf8 {[%emt 0:00:30]} 54. Nb3 {[%emt 0:05:35]} b6 {[%emt 0:00:17]} 55. Nd4 {[%emt 0:15:14]} Rf4 {[%emt 0:00:20]} 56. h3 {[%emt 0:00:02]} Rf1 {[%emt 0:00:38]} 57. h4 {[%emt 0:01:31]} gxh4 {[%emt 0:00:29]} 58. Nf3 {[%emt 0:00:03]} h3 {[%emt 0:01:44]} 59. Ke2 {[%emt 0:00:07]} Rg1 {[%emt 0:02:11]} 0-1

[Event "58th Akiba Rubinstein C 2022"]
[Site "Polanica-Zdroj"]
[Date "2022.08.17"]
[Round "5.14"]
[White "Chubar, Vladimir"]
[Black "Urban, Marek"]
[Result "1-0"]
[ECO "D03"]
[WhiteElo "1809"]
[BlackElo "1545"]
[Annotator "NA RC"]
[PlyCount "63"]
[EventDate "2022.08.13"]
[EventCountry "POL"]
[SourceTitle "playchess.com"]
[Source "ChessBase"]
[SourceQuality "1"]
[TimeControl "40/5400+30:1800+30"]

1. d4 {[%emt 0:04:32]} Nf6 {[%emt 0:00:12]} 2. Nf3 {[%emt 0:00:08]} d5 {[%emt 0:00:20]} 3. Bg5 {[%emt 0:00:24]} Ne4 {[%emt 0:00:44]} 4. Bf4 {[%emt 0:00:14]} c6 {[%emt 0:01:12]} 5. Nbd2 {[%emt 0:00:22]} Nf6 {[%emt 0:05:22]} 6. e3 {[%emt 0:00:50]} e6 {[%emt 0:01:43]} 7. Bd3 {[%emt 0:00:32]} Nbd7 {[%emt 0:00:46]} 8. O-O {[%emt 0:01:47]} Nh5 {[%emt 0:00:26]} 9. Ne5 {[%emt 0:03:47]} Nxf4 {[%emt 0:03:25]} 10. exf4 {[%emt 0:01:41]} c5 {[%emt 0:00:37]} 11. c4 {[%emt 0:05:47]} Nxe5 {[%emt 0:04:45]} 12. dxe5 {[%emt 0:05:20]} d4 {[%emt 0:01:20]} 13. Qf3 {[%emt 0:07:44]} g6 {[%emt 0:01:02]} 14. Ne4 {[%emt 0:12:27]} Be7 {[%emt 0:00:38]} 15. g4 {[%emt 0:02:16]} Bd7 {[%emt 0:02:04]} 16. Qh3 {[%emt 0:08:51]} Qc7 {[%emt 0:11:06]} 17. b4 {[%emt 0:02:26]} cxb4 {[%emt 0:02:59]} 18. c5 {[%emt 0:00:38]} Bc6 {[%emt 0:01:39]} 19. Nd6+ {[%emt 0:01:06]} Bxd6 {[%emt 0:02:14]} 20. cxd6 {[%emt 0:00:08]} Qa5 {[%emt 0:00:18]} 21. Qh4 O-O {[%emt 0:02:12]} 22. Rfe1 {[%emt 0:02:33]} Qa3 {[%emt 0:01:42]} 23. Rad1 {[%emt 0:02:20]} Qxa2 {[%emt 0:04:18]} 24. f5 Bf3 {[%emt 0:04:02]} 25. f6 {[%emt 0:06:21]} Kh8 {[%emt 0:00:38]} 26. Qh6 {[%emt 0:00:06]} Rg8 {[%emt 0:02:00]} 27. Rc1 {[%emt 0:00:11]} Bc6 28. Be4 {[%emt 0:11:17]} Qa4 {[%emt 0:05:24]} 29. Bxc6 {[%emt 0:01:31]} bxc6 {[%emt 0:00:04]} 30. Red1 {[%emt 0:00:20]} b3 {[%emt 0:00:22]} 31. Rd3 {[%emt 0:00:11]} b2 {[%emt 0:02:35]} 32. Qxh7+ {[%emt 0:01:39]} 1-0

[Event "58th Akiba Rubinstein C 2022"]
[Site "Polanica-Zdroj"]
[Date "2022.08.18"]
[Round "6.1"]
[White "Gromczak, Dariusz"]
[Black "Shilov, Sergej"]
[Result "1/2-1/2"]
[ECO "B00"]
[WhiteElo "1906"]
[BlackElo "2048"]
[Annotator "NA RC"]
[PlyCount "114"]
[EventDate "2022.08.13"]
[EventCountry "POL"]
[SourceTitle "playchess.com"]
[Source "ChessBase"]
[SourceQuality "1"]
[TimeControl "40/5400+30:1800+30"]

1. e4 {[%emt 0:00:05]} d6 {[%emt 0:00:16]} 2. d4 {[%emt 0:00:22]} Nf6 {[%emt 0:00:06]} 3. Bd3 {[%emt 0:01:45]} Nbd7 {[%emt 0:04:58]} 4. Nf3 {[%emt 0:01:02]} e5 {[%emt 0:00:13]} 5. c3 {[%emt 0:00:22]} g6 {[%emt 0:01:10]} 6. O-O {[%emt 0:01:08]} Bg7 {[%emt 0:00:15]} 7. Re1 {[%emt 0:00:55]} O-O {[%emt 0:00:43]} 8. Nbd2 {[%emt 0:01:03]} Re8 {[%emt 0:05:11]} 9. a4 {[%emt 0:12:29]} a5 {[%emt 0:04:15]} 10. Nf1 {[%emt 0:00:11]} c6 {[%emt 0:02:29]} 11. Ng3 {[%emt 0:03:46]} Qc7 {[%emt 0:00:49]} 12. h3 {[%emt 0:01:32]} b6 13. Be3 {[%emt 0:11:17]} Ba6 {[%emt 0:16:55]} 14. Bxa6 {[%emt 0:02:20]} Rxa6 {[%emt 0:00:00]} 15. dxe5 {[%emt 0:00:52]} Nxe5 {[%emt 0:03:18]} 16. Nxe5 {[%emt 0:01:02]} dxe5 {[%emt 0:00:21]} 17. Qc2 {[%emt 0:09:10]} Raa8 {[%emt 0:02:57]} 18. Red1 {[%emt 0:01:15]} Red8 {[%emt 0:02:06]} 19. Rxd8+ {[%emt 0:04:03]} Rxd8 {[%emt 0:00:07]} 20. Rd1 {[%emt 0:01:39]} Rd7 {[%emt 0:03:01]} 21. f3 Bf8 {[%emt 0:01:19]} 22. Ne2 {[%emt 0:05:41]} Rxd1+ {[%emt 0:03:04]} 23. Qxd1 {[%emt 0:00:04]} Nd7 {[%emt 0:00:07]} 24. Kf2 {[%emt 0:06:24]} Kg7 {[%emt 0:01:57]} 25. Qd2 {[%emt 0:08:13]} Bc5 {[%emt 0:01:04]} 26. b4 {[%emt 0:01:21]} Bxe3+ {[%emt 0:02:05]} 27. Kxe3 {[%emt 0:04:27]} b5 {[%emt 0:00:59]} 28. axb5 {[%emt 0:03:33]} Qb6+ {[%emt 0:05:28]} 29. Kd3 {[%emt 0:00:26]} Qxb5+ {[%emt 0:05:01]} 30. Kc2 {[%emt 0:04:16]} axb4 {[%emt 0:01:21]} 31. cxb4 {[%emt 0:02:19]} Qa4+ {[%emt 0:02:21]} 32. Kc3 {[%emt 0:02:21]} c5 {[%emt 0:00:54]} 33. Qb2 Qb5 {[%emt 0:04:38]} 34. bxc5 {[%emt 0:06:51]} Qxc5+ {[%emt 0:00:18]} 35. Kd2 {[%emt 0:00:25]} Qf2 {[%emt 0:03:40]} 36. Qb5 {[%emt 0:01:06]} Nc5 {[%emt 0:01:58]} 37. Qb8 {[%emt 0:02:09]} Nd7 {[%emt 0:03:51]} 38. Qb5 {[%emt 0:00:03]} Nf6 {[%emt 0:01:20]} 39. Qxe5 {[%emt 0:00:21]} Qxg2 {[%emt 0:00:03]} 40. Qg3 {[%emt 0:00:00]} Qxg3 {[%emt 0:00:00]} 41. Nxg3 {[%emt 0:03:26]} Kh6 {[%emt 0:09:24]} 42. f4 {[%emt 0:07:46]} Nh5 {[%emt 0:01:17]} 43. Ne2 {[%emt 0:00:04]} g5 {[%emt 0:02:04]} 44. f5 {[%emt 0:01:50]} f6 {[%emt 0:09:52]} 45. Ke3 {[%emt 0:01:12]} Kg7 {[%emt 0:00:18]} 46. Kf3 {[%emt 0:01:27]} Kf7 {[%emt 0:00:13]} 47. h4 {[%emt 0:03:19]} gxh4 {[%emt 0:04:00]} 48. Kg4 {[%emt 0:00:04]} Ng7 {[%emt 0:00:24]} 49. Kxh4 {[%emt 0:00:34]} Ke7 {[%emt 0:00:09]} 50. Kg4 {[%emt 0:01:34]} Kd6 {[%emt 0:00:29]} 51. Kf4 {[%emt 0:01:32]} h5 {[%emt 0:01:39]} 52. Nc3 {[%emt 0:01:31]} Ne8 53. Nd5 {[%emt 0:00:32]} h4 {[%emt 0:00:55]} 54. Kg4 {[%emt 0:00:15]} Ke5 {[%emt 0:00:14]} 55. Kxh4 {[%emt 0:00:26]} Kxe4 {[%emt 0:00:13]} 56. Nxf6+ {[%emt 0:00:16]} Nxf6 {[%emt 0:00:11]} 57. Kg3 {[%emt 0:00:16]} Kxf5 {[%emt 0:00:03]} 1/2-1/2

[Event "58th Akiba Rubinstein C 2022"]
[Site "Polanica-Zdroj"]
[Date "2022.08.18"]
[Round "6.3"]
[White "Fikus, Zygmunt"]
[Black "Krupa, Jerzy"]
[Result "1-0"]
[ECO "A39"]
[WhiteElo "1891"]
[BlackElo "1771"]
[Annotator "NA RC"]
[PlyCount "31"]
[EventDate "2022.08.13"]
[EventCountry "POL"]
[SourceTitle "playchess.com"]
[Source "ChessBase"]
[SourceQuality "1"]
[TimeControl "40/5400+30:1800+30"]

1. c4 {[%emt 0:02:27]} c5 {[%emt 0:00:43]} 2. Nf3 {[%emt 0:00:31]} Nc6 {[%emt 0:00:16]} 3. g3 {[%emt 0:00:21]} g6 {[%emt 0:00:36]} 4. Bg2 {[%emt 0:02:16]} Bg7 {[%emt 0:00:06]} 5. O-O {[%emt 0:00:15]} Nf6 {[%emt 0:01:02]} 6. Nc3 {[%emt 0:00:21]} O-O {[%emt 0:00:08]} 7. d4 {[%emt 0:02:17]} cxd4 {[%emt 0:00:36]} 8. Nxd4 {[%emt 0:00:45]} a6 {[%emt 0:04:33]} 9. e3 Qc7 {[%emt 0:04:22]} 10. b3 {[%emt 0:05:10]} d6 {[%emt 0:01:13]} 11. Bb2 {[%emt 0:00:29]} Bg4 12. f3 {[%emt 0:07:06]} Bd7 {[%emt 0:05:42]} 13. Re1 {[%emt 0:04:11]} e5 {[%emt 0:09:19]} 14. Nc2 {[%emt 0:00:40]} Be6 {[%emt 0:01:06]} 15. Kh1 {[%emt 0:01:56]} Rfd8 {[%emt 0:02:36]} 16. e4 {[%emt 0:02:21]} 1-0

[Event "58th Akiba Rubinstein C 2022"]
[Site "Polanica-Zdroj"]
[Date "2022.08.18"]
[Round "6.4"]
[White "Szylko, Waldemar"]
[Black "Marusenko, Petr"]
[Result "1/2-1/2"]
[ECO "B11"]
[WhiteElo "1911"]
[BlackElo "2075"]
[Annotator "NA RC"]
[PlyCount "132"]
[EventDate "2022.08.13"]
[EventCountry "POL"]
[SourceTitle "playchess.com"]
[Source "ChessBase"]
[SourceQuality "1"]
[TimeControl "40/5400+30:1800+30"]

1. e4 {[%emt 0:00:03]} c6 {[%emt 0:00:34]} 2. Nc3 {[%emt 0:00:17]} d5 {[%emt 0:00:17]} 3. Nf3 {[%emt 0:00:15]} Bg4 {[%emt 0:00:06]} 4. h3 {[%emt 0:00:07]} Bh5 {[%emt 0:00:06]} 5. exd5 {[%emt 0:00:38]} cxd5 {[%emt 0:00:05]} 6. d4 {[%emt 0:00:30]} Nc6 {[%emt 0:00:09]} 7. Bb5 {[%emt 0:01:06]} e6 8. g4 {[%emt 0:00:13]} Bg6 {[%emt 0:00:16]} 9. Ne5 {[%emt 0:00:12]} Rc8 {[%emt 0:00:06]} 10. h4 {[%emt 0:00:27]} f6 {[%emt 0:00:10]} 11. Nxg6 {[%emt 0:00:42]} hxg6 {[%emt 0:00:07]} 12. Qd3 {[%emt 0:04:20]} Kf7 {[%emt 0:02:24]} 13. h5 {[%emt 0:01:45]} gxh5 {[%emt 0:00:08]} 14. Rxh5 {[%emt 0:00:32]} Rxh5 {[%emt 0:00:09]} 15. gxh5 {[%emt 0:00:01]} Nge7 {[%emt 0:00:08]} 16. Bf4 {[%emt 0:01:22]} Nf5 {[%emt 0:00:27]} 17. Bxc6 {[%emt 0:03:26]} bxc6 {[%emt 0:00:44]} 18. Ne2 {[%emt 0:08:00]} Qa5+ {[%emt 0:03:25]} 19. c3 Qb5 {[%emt 0:02:14]} 20. O-O-O {[%emt 0:17:58]} Qxd3 {[%emt 0:01:29]} 21. Rxd3 {[%emt 0:00:02]} c5 {[%emt 0:00:10]} 22. Ng3 {[%emt 0:01:09]} Nxg3 {[%emt 0:05:07]} 23. Bxg3 {[%emt 0:00:52]} cxd4 {[%emt 0:00:11]} 24. Rxd4 {[%emt 0:00:17]} Bc5 {[%emt 0:00:09]} 25. Rh4 {[%emt 0:02:37]} e5 {[%emt 0:01:42]} 26. Kd2 {[%emt 0:01:12]} Rh8 {[%emt 0:03:54]} 27. b4 {[%emt 0:01:27]} Be7 {[%emt 0:00:38]} 28. Rh2 {[%emt 0:00:41]} Ke6 {[%emt 0:00:27]} 29. a4 {[%emt 0:00:51]} Rc8 {[%emt 0:07:48]} 30. b5 {[%emt 0:04:32]} Rc4 {[%emt 0:01:54]} 31. Rh4 {[%emt 0:00:49]} Rc8 {[%emt 0:05:26]} 32. f3 {[%emt 0:02:40]} f5 {[%emt 0:00:59]} 33. Rh1 {[%emt 0:00:43]} Bg5+ {[%emt 0:01:58]} 34. f4 {[%emt 0:06:23]} Bxf4+ {[%emt 0:02:38]} 35. Bxf4 {[%emt 0:00:15]} exf4 {[%emt 0:00:02]} 36. Rg1 {[%emt 0:05:41]} Rc7 {[%emt 0:00:30]} 37. Kd3 {[%emt 0:03:56]} Ke5 {[%emt 0:00:42]} 38. Rf1 {[%emt 0:05:52]} Rc4 {[%emt 0:09:42]} 39. Rg1 {[%emt 0:08:59]} f3 {[%emt 0:01:11]} 40. Rxg7 {[%emt 0:00:00]} Rxc3+ {[%emt 0:00:00]} 41. Kd2 {[%emt 0:01:56]} f2 {[%emt 0:01:12]} 42. Ke2 {[%emt 0:00:15]} Rc2+ {[%emt 0:00:07]} 43. Kf1 {[%emt 0:00:22]} Kf4 {[%emt 0:00:10]} 44. Kg2 {[%emt 0:00:56]} d4 {[%emt 0:03:18]} 45. h6 {[%emt 0:00:43]} d3 {[%emt 0:00:03]} 46. h7 {[%emt 0:01:12]} d2 {[%emt 0:00:07]} 47. Rd7 {[%emt 0:00:35]} Rc1 {[%emt 0:05:48]} 48. Kxf2 {[%emt 0:00:40]} Rh1 {[%emt 0:00:06]} 49. Ke2 {[%emt 0:01:23]} d1=Q+ {[%emt 0:01:44]} 50. Rxd1 {[%emt 0:00:04]} Rxh7 {[%emt 0:00:11]} 51. Rd6 {[%emt 0:06:00]} Ke4 {[%emt 0:03:33]} 52. a5 {[%emt 0:01:00]} f4 {[%emt 0:00:29]} 53. b6 {[%emt 0:01:34]} axb6 {[%emt 0:00:06]} 54. axb6 {[%emt 0:00:14]} Rh2+ {[%emt 0:00:10]} 55. Kf1 {[%emt 0:02:40]} Rb2 {[%emt 0:00:06]} 56. Rc6 {[%emt 0:00:16]} Kf3 57. Rc3+ {[%emt 0:01:13]} Kg4 {[%emt 0:00:52]} 58. Rc6 {[%emt 0:01:07]} Kg3 {[%emt 0:00:24]} 59. Rg6+ {[%emt 0:01:52]} Kf3 {[%emt 0:01:24]} 60. Ke1 {[%emt 0:00:01]} Rb1+ {[%emt 0:00:41]} 61. Kd2 {[%emt 0:00:01]} Kf2 {[%emt 0:00:11]} 62. Kd3 {[%emt 0:02:35]} f3 {[%emt 0:00:17]} 63. Kc4 {[%emt 0:01:08]} Ke3 {[%emt 0:01:55]} 64. Rf6 {[%emt 0:01:05]} f2 {[%emt 0:00:24]} 65. Kc5 {[%emt 0:00:14]} f1=Q {[%emt 0:02:36]} 66. Rxf1 {[%emt 0:00:19]} Rxf1 1/2-1/2

[Event "58th Akiba Rubinstein C 2022"]
[Site "Polanica-Zdroj"]
[Date "2022.08.18"]
[Round "6.5"]
[White "fainberg, Boris"]
[Black "Bukowska, Katarzyna"]
[Result "1-0"]
[ECO "D35"]
[WhiteElo "2015"]
[BlackElo "1842"]
[Annotator "NA RC"]
[PlyCount "85"]
[EventDate "2022.08.13"]
[EventCountry "POL"]
[SourceTitle "playchess.com"]
[Source "ChessBase"]
[SourceQuality "1"]
[TimeControl "40/5400+30:1800+30"]

1. d4 {[%emt 0:01:34]} d5 {[%emt 0:00:11]} 2. c4 {[%emt 0:00:01]} e6 {[%emt 0:00:27]} 3. Nc3 {[%emt 0:00:07]} Nf6 {[%emt 0:00:12]} 4. cxd5 {[%emt 0:00:10]} exd5 {[%emt 0:00:16]} 5. Bg5 {[%emt 0:00:05]} Be7 {[%emt 0:00:38]} 6. e3 {[%emt 0:00:48]} O-O {[%emt 0:00:27]} 7. Qc2 {[%emt 0:01:38]} Nbd7 {[%emt 0:02:27]} 8. Nf3 {[%emt 0:03:07]} c6 {[%emt 0:00:46]} 9. Bd3 {[%emt 0:02:31]} Re8 {[%emt 0:00:21]} 10. O-O {[%emt 0:00:53]} Nf8 {[%emt 0:00:17]} 11. Rab1 Bg4 {[%emt 0:07:10]} 12. Ne5 {[%emt 0:06:20]} Bh5 {[%emt 0:00:41]} 13. b4 {[%emt 0:12:40]} a6 {[%emt 0:04:50]} 14. a4 {[%emt 0:01:01]} N6d7 {[%emt 0:02:55]} 15. Bxe7 {[%emt 0:03:03]} Qxe7 {[%emt 0:00:10]} 16. Nxd7 {[%emt 0:00:39]} Qxd7 {[%emt 0:00:45]} 17. b5 {[%emt 0:00:58]} axb5 {[%emt 0:01:53]} 18. axb5 {[%emt 0:00:40]} Bg6 {[%emt 0:12:35]} 19. Rfc1 {[%emt 0:14:12]} Bxd3 {[%emt 0:12:29]} 20. Qxd3 {[%emt 0:01:29]} Ra3 {[%emt 0:00:13]} 21. h3 {[%emt 0:04:38]} Rea8 {[%emt 0:02:29]} 22. Qe2 {[%emt 0:06:37]} Ne6 {[%emt 0:01:36]} 23. Qg4 {[%emt 0:03:38]} g6 {[%emt 0:05:56]} 24. Qg3 {[%emt 0:08:09]} Qd8 {[%emt 0:13:40]} 25. Qe5 {[%emt 0:02:36]} Qg5 {[%emt 0:07:32]} 26. Qd6 {[%emt 0:05:59]} Qd8 {[%emt 0:04:51]} 27. Qg3 {[%emt 0:05:06]} c5 {[%emt 0:02:27]} 28. Qe5 {[%emt 0:06:05]} Qb8 {[%emt 0:07:16]} 29. Qxd5 {[%emt 0:03:21]} cxd4 {[%emt 0:00:34]} 30. exd4 {[%emt 0:00:25]} b6 {[%emt 0:04:05]} 31. Qc4 Qd8 {[%emt 0:00:45]} 32. d5 {[%emt 0:04:15]} Nc5 {[%emt 0:01:47]} 33. Rd1 {[%emt 0:01:04]} Qd6 {[%emt 0:00:21]} 34. g3 {[%emt 0:00:48]} R8a4 {[%emt 0:02:33]} 35. Nxa4 {[%emt 0:00:30]} Rxg3+ {[%emt 0:00:05]} 36. fxg3 {[%emt 0:01:37]} Qxg3+ {[%emt 0:00:03]} 37. Kf1 {[%emt 0:00:08]} Qf3+ {[%emt 0:00:15]} 38. Ke1 {[%emt 0:00:07]} Qg3+ {[%emt 0:01:37]} 39. Kf1 {[%emt 0:00:53]} Qf3+ {[%emt 0:00:00]} 40. Ke1 {[%emt 0:00:07]} Qg3+ {[%emt 0:01:00]} 41. Kd2 {[%emt 0:30:31]} Qf2+ {[%emt 0:30:57]} 42. Kc1 {[%emt 0:00:00]} Qe3+ {[%emt 0:00:00]} 43. Kb2 {[%emt 0:00:00]} 1-0

[Event "58th Akiba Rubinstein C 2022"]
[Site "Polanica-Zdroj"]
[Date "2022.08.18"]
[Round "6.6"]
[White "Poniewierski, Piotr"]
[Black "Mazalon, Mariusz"]
[Result "1/2-1/2"]
[ECO "A04"]
[WhiteElo "1747"]
[BlackElo "1994"]
[Annotator "NA RC"]
[PlyCount "58"]
[EventDate "2022.08.13"]
[EventCountry "POL"]
[SourceTitle "playchess.com"]
[Source "ChessBase"]
[SourceQuality "1"]
[TimeControl "40/5400+30:1800+30"]

1. Nf3 {[%emt 0:00:04]} b5 {[%emt 0:04:37]} 2. d4 {[%emt 0:00:51]} Bb7 {[%emt 0:00:14]} 3. g3 {[%emt 0:00:34]} e6 {[%emt 0:00:37]} 4. Bg2 {[%emt 0:00:10]} c5 {[%emt 0:00:41]} 5. b3 {[%emt 0:06:49]} cxd4 {[%emt 0:06:38]} 6. Qxd4 {[%emt 0:02:01]} Nf6 {[%emt 0:07:51]} 7. O-O {[%emt 0:00:50]} Nc6 8. Qd2 {[%emt 0:07:09]} d5 {[%emt 0:02:28]} 9. Bb2 {[%emt 0:00:54]} Be7 {[%emt 0:00:45]} 10. c4 {[%emt 0:04:21]} dxc4 {[%emt 0:02:41]} 11. bxc4 {[%emt 0:00:22]} b4 {[%emt 0:03:37]} 12. a3 O-O {[%emt 0:13:06]} 13. axb4 {[%emt 0:10:16]} Nxb4 {[%emt 0:03:48]} 14. Nc3 {[%emt 0:06:39]} Qc7 15. Rfc1 {[%emt 0:08:54]} a6 {[%emt 0:17:31]} 16. Na4 {[%emt 0:08:49]} Rfd8 {[%emt 0:05:07]} 17. Qe3 {[%emt 0:03:27]} Nd7 {[%emt 0:03:18]} 18. Nd4 {[%emt 0:07:31]} Nc5 {[%emt 0:06:28]} 19. Bxb7 Qxb7 {[%emt 0:02:12]} 20. Nxc5 {[%emt 0:04:09]} Bxc5 {[%emt 0:00:08]} 21. Qf3 {[%emt 0:00:26]} Qxf3 {[%emt 0:04:51]} 22. Nxf3 {[%emt 0:00:18]} a5 {[%emt 0:00:15]} 23. Rd1 {[%emt 0:02:51]} Nc6 {[%emt 0:01:28]} 24. Rxd8+ {[%emt 0:02:02]} Rxd8 {[%emt 0:00:05]} 25. Bc3 {[%emt 0:03:02]} Bb4 {[%emt 0:02:26]} 26. Bxb4 {[%emt 0:01:16]} axb4 {[%emt 0:00:01]} 27. Ra6 {[%emt 0:00:30]} Rc8 {[%emt 0:00:12]} 28. Ra1 Rd8 29. Ra6 Rc8 1/2-1/2

[Event "58th Akiba Rubinstein C 2022"]
[Site "Polanica-Zdroj"]
[Date "2022.08.18"]
[Round "6.7"]
[White "Twarogiel, Tadeusz"]
[Black "Kawula, Andrzej"]
[Result "0-1"]
[ECO "D02"]
[WhiteElo "1767"]
[BlackElo "1870"]
[Annotator "NA RC"]
[PlyCount "49"]
[EventDate "2022.08.13"]
[EventCountry "POL"]
[SourceTitle "playchess.com"]
[Source "ChessBase"]
[SourceQuality "1"]
[TimeControl "40/5400+30:1800+30"]

1. d4 {[%emt 0:00:05]} d5 {[%emt 0:00:12]} 2. Nf3 {[%emt 0:00:03]} e6 {[%emt 0:00:14]} 3. c3 {[%emt 0:00:33]} c5 {[%emt 0:00:55]} 4. e3 {[%emt 0:01:04]} f5 {[%emt 0:00:47]} 5. g3 {[%emt 0:04:40]} Nf6 {[%emt 0:00:23]} 6. Bg2 {[%emt 0:00:02]} Nc6 {[%emt 0:00:21]} 7. Nbd2 {[%emt 0:00:32]} Be7 {[%emt 0:01:06]} 8. Ne5 {[%emt 0:01:56]} Nxe5 {[%emt 0:01:42]} 9. dxe5 {[%emt 0:00:02]} Ng4 {[%emt 0:01:21]} 10. Nf3 {[%emt 0:00:44]} Qc7 {[%emt 0:01:10]} 11. Qa4+ {[%emt 0:06:19]} Bd7 {[%emt 0:00:34]} 12. Qf4 {[%emt 0:00:04]} h6 {[%emt 0:03:13]} 13. h4 {[%emt 0:00:02]} O-O-O 14. Bh3 {[%emt 0:06:10]} g5 {[%emt 0:07:30]} 15. hxg5 {[%emt 0:00:15]} hxg5 {[%emt 0:00:21]} 16. Nxg5 {[%emt 0:00:44]} Nxe5 {[%emt 0:00:49]} 17. Kd1 {[%emt 0:01:01]} Bxg5 {[%emt 0:03:35]} 18. Qxg5 {[%emt 0:00:10]} Rdg8 {[%emt 0:01:48]} 19. Qe7 {[%emt 0:02:22]} Ng4 {[%emt 0:02:15]} 20. Ke1 {[%emt 0:00:41]} Nxf2 {[%emt 0:00:43]} 21. Kxf2 {[%emt 0:01:01]} Qxg3+ {[%emt 0:00:28]} 22. Ke2 {[%emt 0:00:29]} Bb5+ {[%emt 0:02:13]} 23. Kd1 {[%emt 0:01:00]} Rxh3 24. Rxh3 {[%emt 0:01:24]} Qg4+ {[%emt 0:07:39]} 25. Kd2 {[%emt 0:01:29]} 0-1